[Event "FIDE WTC-KO 202"]
[Site "Jerusalem"]
[Date "2022.11.23"]
[Round "3.1"]
[White "Lagarde, Maxime"]
[Black "Sasikiran, Krishnan"]
[Result "1-0"]
[ECO "A12"]
[WhiteElo "2573"]
[BlackElo "2577"]
[Annotator "TA"]
[PlyCount "109"]
[EventDate "2022.11.20"]
[EventType "team-tourn"]
[EventCountry "ISR"]
[SourceTitle "playchess.com"]
[Source "ChessBase"]
[SourceQuality "1"]
[WhiteTeam "France"]
[WhiteTeamCountry "FRA"]
[TimeControl "180+2"]

{[%evp 14,109,11,0,15,2,31,46,48,-52,-14,-10,-18,-34,-39,-32,-15,-81,-17,-29,0,0,0,-39,-34,-33,-31,-26,-32,-51,-4,-5,-12,-14,-8,-12,0,0,18,14,18,16,24,25,18,17,17,-8,41,34,41,38,74,33,34,34,34,34,44,26,26,26,26,29,77,74,77,8,339,332,552,546,519,505,487,476,648,653,12270,10145,8246,6637,5320,5320,29970,29966,29975,29976,29981,29978,29980,29981,29981,29982,29983,29984,29984,29985]} 1. c4 {[%emt 0:00:00]} c6 {[%emt 0:00:04]} 2. Nf3 {[%emt 0:00:07]} d5 {[%emt 0:00:01]} 3. e3 {[%emt 0:00:01]} Nf6 {[%emt 0:00:02]} 4. b3 {[%emt 0:00:01]} Bg4 {[%emt 0:00:05][%cal Bc8g4,Bg4h5,Bh5g6,Bg6h7][%mdl 32]} 5. Bb2 {[%emt 0:00:02]} Nbd7 {[%emt 0:00:12]} 6. h3 {[%emt 0:00:01]} Bh5 {[%emt 0:00:01]} 7. Be2 {[%emt 0:00:10]} e6 {[%emt 0:00:03]} 8. Nc3 {[%emt 0:00:06]} a6 {[%emt 0:00:15] A12: English Opening: 1...c6 with b3 by White.} 9. d3 {[%emt 0:00:20]} Bd6 {[%emt 0:00:06]} 10. g4 {[%emt 0:00:18]} Bg6 {[%emt 0:00:10] [#] White is slightly better.} 11. h4 $5 $146 {[%emt 0:00:01][%mdl 8] An interesting novelty.} (11. g5 $14) ({Predecessor:} 11. Qc2 Qe7 12. Nh4 Ba3 13. O-O-O O-O-O 14. g5 Ne8 15. f4 Bxb2+ 16. Kxb2 Kb8 17. Bf3 {0-1 (61) Moranda,W (2593)-Schneider,I (2517) Katowice 2017}) 11... h6 {[%emt 0:00:22]} 12. h5 {[%emt 0:00:15]} Bh7 {[%emt 0:00:01]} 13. g5 {[%emt 0:00:01]} hxg5 {[%emt 0:00:01]} 14. Nxg5 {[%emt 0:00:01]} Qe7 {[%emt 0:00:07][%cal Oh7g6]} 15. Qd2 {[%emt 0:00:41] [#]} (15. Nxh7 $11 Rxh7 16. d4) 15... O-O-O {[%emt 0:00:11]} ({Black should try} 15... Bg6 $1 $17 {[%cal Rf6h5]} 16. O-O-O Bxh5) 16. O-O-O {[%emt 0:00:09]} Kb8 {[%emt 0:00:01][%cal Of6g4]} (16... Bb4 {is more complex.} 17. Nxh7 Rxh7 18. Kb1 Rdh8) 17. Rdg1 {[%emt 0:00:11]} e5 {[%emt 0:00:19]} 18. cxd5 {[%emt 0:00:06]} cxd5 {[%emt 0:00:01]} 19. Nxh7 {[%emt 0:00:03]} Rxh7 {[%emt 0:00:01]} 20. Kb1 {[%emt 0:00:02]} Bb4 {[%emt 0:00:18]} 21. d4 {[%emt 0:00:29]} Rc8 {[%emt 0:00:07]} (21... Ne4 $1 $15 22. Qd3 Bxc3 23. Bxc3 Rh6) 22. Rc1 $11 {[%emt 0:00:04]} Ne4 {[%emt 0:00:28]} 23. Qd3 {[%emt 0:00:01]} Bxc3 {[%emt 0:00:12]} (23... Nxf2 $2 24. Qxh7 Nxh1 25. Qxg7 $18 (25. Nxd5 Rxc1+ 26. Bxc1 Nf6 $18)) 24. Bxc3 {[%emt 0:00:01]} Rxc3 {[%emt 0:00:08]} (24... Nxf2 $2 25. Qxh7 Nxh1 26. Qxg7 $18) (24... Rhh8 {seems wilder.} 25. Rhf1 Rxc3 26. Rxc3 Nxc3+ 27. Qxc3 Rc8) 25. Rxc3 {[%emt 0:00:01] Strongly threatening Rc2.} Nxc3+ {[%emt 0:00:01]} (25... Rh6 $5 {[%cal Re4f2]} 26. Rg1 Nxc3+ 27. Qxc3 Rc6 $11) 26. Qxc3 {[%emt 0:00:01] Threatens to win with Rc1.} exd4 {[%emt 0:00:07]} 27. Qxd4 {[%emt 0:00:01]} Qe4+ {[%emt 0:00:01]} 28. Qxe4 {[%emt 0:00:01]} dxe4 {[%emt 0:00:00][%mdl 4096] Endgame KRB-KRN} 29. Rh4 {[%emt 0:00:06]} Nf6 {[%emt 0:00:04]} 30. Rf4 {[%emt 0:00:01]} Kc7 {[%emt 0:00:03]} ({Don't do} 30... Nxh5 31. Bxh5 (31. Rxe4 Nf6 $14) 31... Rxh5 32. Rxf7 $14) (30... Nd5 $11 31. Rg4 Rxh5) 31. Rf5 {[%emt 0:00:04]} Kd6 {[%emt 0:00:02]} 32. Kb2 {[%emt 0:00:05]} Rh8 {[%emt 0:00:09]} 33. Rg5 {[%emt 0:00:06]} Ke7 {[%emt 0:00:13]} 34. a4 {[%emt 0:00:03]} g6 {[%emt 0:00:02]} 35. hxg6 {[%emt 0:00:02]} fxg6 {[%emt 0:00:01]} 36. Rxg6 {[%emt 0:00:09] Rg7+ is the strong threat.} Rh2 {[%emt 0:00:01]} 37. Bc4 {[%emt 0:00:01] Hoping for Rg7+.} Rxf2+ {[%emt 0:00:05]} 38. Kc3 {[%emt 0:00:01] And now Rg7+ would win.} Kd6 {[%emt 0:00:02]} (38... b5 $1 $11 {might be stronger.} 39. axb5 axb5 40. Bxb5 Nd5+ 41. Kd4 Nxe3) 39. a5 $16 {[%emt 0:00:03]} Ke5 {[%emt 0:00:03]} 40. Rg7 {[%emt 0:00:02]} (40. b4 $16) 40... Rf3 $2 {[%emt 0:00:03][%mdl 8192] [#] A mistake that costs the game.} (40... Nd5+ $1 $11 {and Black is okay.} 41. Bxd5 Kxd5) 41. Re7+ $1 $18 {[%emt 0:00:03]} (41. Rxb7 Nd5+ 42. Kb2 Nxe3 $16) 41... Kf5 $2 {[%emt 0:00:02]} (41... Kd6 42. Rxb7 Nd5+ 43. Kd4 Nxe3 44. Rb6+ (44. Kxe4 Nxc4 45. Kxf3 Nxa5 $14) 44... Kc7 45. Bxa6 Nc2+ 46. Kxe4 Rh3) 42. Kd4 {[%emt 0:00:02]} ({Weaker is} 42. Rxb7 Rxe3+ 43. Kb2 Rh3 44. Bxa6 Rh2+ 45. Ka3 Nd5 $18) 42... Rf2 {[%emt 0:00:05]} 43. Rxb7 {[%emt 0:00:02]} Rd2+ {[%emt 0:00:01]} 44. Kc3 {[%emt 0:00:02]} Rd1 {[%emt 0:00:02]} 45. Rb6 {[%emt 0:00:02]} Nd5+ {[%emt 0:00:02]} 46. Bxd5 {[%emt 0:00:01]} Rxd5 {[%emt 0:00:01]} 47. Rxa6 {[%emt 0:00:01] KR-KR} Rd3+ {[%emt 0:00:00]} 48. Kc4 {[%emt 0:00:01]} Rxe3 {[%emt 0:00:01]} 49. Ra8 {[%emt 0:00:02] White mates.} Re1 {[%emt 0:00:02]} 50. a6 {[%emt 0:00:00]} e3 {[%emt 0:00:01]} 51. Kd3 {[%emt 0:00:03]} Rb1 {[%emt 0:00:02]} 52. a7 {[%emt 0:00:03]} Rxb3+ {[%emt 0:00:01]} 53. Ke2 {[%emt 0:00:01]} Ra3 {[%emt 0:00:04]} 54. Rf8+ {[%emt 0:00:01]} Ke5 {[%emt 0:00:02]} 55. a8=Q {[%emt 0:00:01] Weighted Error Value: White=0.14 (very precise) /Black=0.51} ({Less strong is} 55. a8=B Ra2+ 56. Kxe3 Ra3+ 57. Kd2 Ra2+ 58. Ke3 Ra3+ 59. Ke2 Ra2+ 60. Kd3 Kd6 $14) 1-0